bitfinex-derivatives/quotes_ETHF0:USTF0_20260128
["timestamp","ask_amount","ask_price","bid_price","bid_amount"]
[1769631565097,1.15246601,3022.8,3021.4,0.93597733]
[1769631565294,1.15246601,3022.8,3021.5,0.1657]
[1769631566195,1.15617417,3022.8,3021.5,0.16991035]
[1769631568890,1.15617417,3022.8,3021.6,0.16569]
[1769631570093,1.15617417,3022.8,3021.5,0.00421035]
[1769631570094,1.07185594,3022.7,3021.5,0.00421035]
[1769631570698,1.07185594,3022.7,3021.1,0.16572]
[1769631571101,1.07185594,3022.7,3020.3,5.92385384]
[1769631571102,0.00370816,3022.8,3021.8,0.16568]
[1769631571394,1.0755641,3022.8,3021.8,0.16568]
[1769631571798,1.0755641,3022.8,3021.9,0.16568]
[1769631573892,1.07185594,3023.1,3021.8,0.61268898]
[1769631574096,1.07185594,3023.4,3022.3,0.16565]
[1769631574291,1.07185594,3023.4,3022.0,0.61018984]
[1769631574497,1.07185594,3023.4,3022.6,0.16564]
[1769631574694,40.8,3024.6,3021.9,0.59178972]
[1769631574695,1.07185594,3024.6,3021.9,0.59178972]
[1769631575006,1.07514651,3024.6,3023.2,2.17773278]
[1769631575698,1.07514651,3024.6,3023.4,0.16559]
[1769631576999,1.07514651,3024.6,3023.5,0.16559]
[1769631577901,1.07514651,3024.6,3023.2,0.59178972]
[1769631577902,1.07185594,3025.9,3024.6,0.16553]
[1769631579005,1.07459912,3025.9,3024.6,0.16867352]
[1769631581003,1.07459912,3025.9,3024.7,0.27154571]
[1769631581203,1.07459912,3025.9,3024.6,0.00314352]
[1769631581403,1.07459912,3025.9,3024.6,0.16867352]
[1769631581598,1.07459912,3025.9,3024.7,0.16552]
[1769631584103,8.0,3026.0,3024.8,0.26067023]
[1769631584406,1.07185594,3026.6,3025.8,0.16546]
[1769631584600,1.07185594,3026.6,3025.4,0.25792705]
[1769631584806,1.07185594,3026.6,3025.9,0.16545]
[1769631585201,1.07552642,3026.6,3025.2,0.16549]
[1769631585508,1.07552642,3026.6,3025.4,0.16548]
[1769631586309,1.07552642,3026.6,3025.5,0.16548]
[1769631587005,1.07185594,3027.4,3026.5,0.16542]
[1769631588211,1.07448318,3027.4,3026.5,0.16542]
[1769631588903,1.07448318,3027.4,3026.1,0.35268321]
[1769631588904,0.00262724,3027.4,3026.1,0.35268321]
[1769631589409,0.00262724,3027.4,3026.8,0.16541]
[1769631589603,0.00262724,3027.4,3026.8,0.16847559]
[1769631590615,1.07448318,3027.4,3026.0,0.16545]
[1769631590803,1.07448318,3027.4,3026.2,0.16544]
[1769631591597,1.07448318,3027.4,3026.2,0.00403248]
[1769631593704,1.07448318,3027.4,3026.4,0.16543]
[1769631593912,1.07448318,3027.4,3026.6,0.16542]
[1769631597212,1.07448318,3027.4,3026.2,0.00403248]
[1769631597520,1.07448318,3027.4,3026.0,0.16545]
[1769631597813,1.07448318,3027.4,3026.1,0.16545]
[1769631598004,1.07448318,3027.4,3025.6,0.09883571]
[1769631598200,1.07448318,3027.4,3025.9,0.09883571]
[1769631598414,1.07448318,3027.4,3026.5,0.16542]
[1769631599619,1.07448318,3027.4,3026.7,0.16541]
[1769631600907,0.97905112,3027.8,3027.0,0.1654]
[1769631601921,0.98306024,3027.8,3027.0,0.1654]
[1769631602115,0.98306024,3027.8,3025.9,0.00393388]
[1769631603222,0.98306024,3027.8,3026.6,0.16542]
[1769631603718,0.98306024,3027.8,3026.7,0.16541]
[1769631607419,0.98306024,3027.8,3026.3,0.16543]
[1769631607721,0.98306024,3027.8,3026.4,0.16543]
[1769631607920,0.98306024,3027.8,3026.5,0.16543]
[1769631608515,0.98306024,3027.8,3025.9,0.00393388]
[1769631609021,1.14841024,3027.8,3025.9,0.00393388]
[1769631609322,1.14841024,3027.8,3026.3,0.16544]
[1769631610817,0.98306024,3027.8,3026.4,0.16543]
[1769631613120,0.98306024,3027.8,3025.9,0.00393388]
[1769631613423,0.97905112,3027.6,3026.4,0.16543]
[1769631614921,0.97905112,3027.4,3025.9,0.00393388]
[1769631615522,0.97905112,3027.2,3025.8,0.16546]
[1769631616523,0.97905112,3027.2,3025.8,0.16962651]
[1769631617025,0.97905112,3027.0,3025.8,0.16962651]
[1769631617414,0.97905112,3027.0,3026.2,0.16544]
[1769631618321,0.97905112,3027.0,3026.4,0.16543]
[1769631618925,3.49859333,3029.5,3026.5,0.9378809]
[1769631619223,3.32943501,3029.4,3027.6,0.16536]
[1769631619417,3.32943501,3029.3,3027.6,0.16536]
[1769631619617,3.32943501,3029.2,3027.6,0.16536]
[1769631619923,0.00373774,3029.2,3027.6,0.16536]
[1769631620916,0.97905112,3029.1,3027.6,0.16536]
[1769631621113,0.97905112,3029.1,3027.8,1.1032309]
[1769631622620,0.97905112,3029.1,3027.8,0.9378809]
[1769631623423,0.97905112,3029.1,3028.0,0.16534]
[1769631623624,0.97905112,3029.1,3028.0,0.16851321]
[1769631623819,0.97905112,3029.1,3028.1,0.16534]
[1769631624027,3.33333333,3029.5,3028.5,0.9378809]
[1769631624326,3.33333333,3029.5,3028.9,0.16529]
[1769631624622,2.78545525,3029.5,3029.1,0.16528]
[1769631625120,2.78888025,3029.5,3029.1,0.16528]
[1769631626226,3.49836335,3029.5,3029.1,0.16528]
[1769631626427,2.78888025,3029.5,3029.1,0.16528]
[1769631627027,0.7094831,3029.4,3028.4,0.16532]
[1769631627224,2.78888025,3029.5,3028.5,0.88381046]
[1769631627417,3.51610331,3029.5,3028.5,0.71850046]
[1769631627620,0.72722306,3029.4,3028.6,0.16531]
[1769631627826,0.72722306,3029.4,3028.1,1.939]
[1769631628026,0.72722306,3029.4,3028.1,2.68698357]
[1769631628226,0.72722306,3029.4,3028.2,0.74798357]
[1769631628427,0.72722306,3029.4,3028.2,2.68698357]
[1769631628629,0.72722306,3029.4,3028.2,0.74798357]
[1769631628834,0.72722306,3029.4,3028.2,2.68698357]
[1769631629128,0.72722306,3029.4,3028.1,1.939]
[1769631629327,0.72722306,3029.4,3028.5,0.16532]
[1769631629828,0.72722306,3029.4,3028.0,0.00317321]
[1769631633428,0.89250306,3029.2,3027.3,2.10438]
[1769631633735,0.89250306,3029.2,3027.3,0.16538]
[1769631634430,0.89250306,3029.2,3027.3,0.16928993]
[1769631635333,0.72722306,3029.2,3027.3,0.7518935]
[1769631635534,0.72722306,3029.2,3027.8,0.16535]
[1769631637039,0.72722306,3028.7,3027.3,0.00390993]
[1769631637636,0.72722306,3028.4,3026.6,0.16542]
[1769631637836,0.72722306,3028.2,3026.6,2.10442]
[1769631638036,0.89256306,3028.2,3026.6,0.16542]
[1769631638238,0.72722306,3028.0,3026.3,1.939]
[1769631638741,0.72722306,3028.0,3026.3,2.10679118]
[1769631639043,0.72722306,3028.0,3026.4,1.939]
[1769631640040,0.72722306,3028.0,3026.4,0.16543]
[1769631640243,0.72722306,3028.0,3026.4,2.10443]
[1769631641735,0.89257306,3028.0,3026.4,2.10443]
[1769631642337,0.72722306,3027.4,3026.3,0.00236118]
[1769631642534,0.72722306,3027.2,3025.7,0.16546]
[1769631643542,0.72722306,3027.1,3025.7,0.16860073]
[1769631645338,0.72722306,3027.1,3025.7,0.00314073]
[1769631645643,0.72722306,3026.8,3025.1,0.1655]
[1769631645846,0.72722306,3026.8,3025.3,0.91347357]
[1769631646737,0.72722306,3026.8,3025.3,0.91581667]
[1769631646940,0.72722306,3026.8,3025.3,2.85581667]
[1769631648343,0.72722306,3026.8,3025.4,1.94]
[1769631648546,0.72722306,3026.8,3025.3,0.1678331]
[1769631650048,0.89263306,3026.8,3025.3,0.0023431]
[1769631650637,0.72722306,3026.6,3025.3,0.0023431]
[1769631650943,0.89264306,3026.6,3025.3,0.0023431]
[1769631652545,0.72722306,3026.4,3024.9,0.16551]
[1769631653542,0.72722306,3026.4,3024.9,0.1684329]
[1769631655249,0.72722306,3026.4,3025.0,0.1655]
[1769631656250,0.72722306,3026.4,3024.9,0.0029229]
[1769631657144,0.16546,3025.9,3023.9,0.59696311]
[1769631657343,0.57152885,3025.8,3024.0,0.59696311]
[1769631657745,0.57152885,3025.8,3024.1,0.76252311]
[1769631658239,0.57152885,3025.8,3024.1,0.7658106]
[1769631660244,0.57152885,3025.8,3024.2,0.59696311]
[1769631660549,0.73699885,3025.7,3024.1,0.16884749]
[1769631660747,0.57152885,3025.6,3024.1,0.16884749]
[1769631663247,0.57152885,3025.6,3024.2,0.76251311]
[1769631663956,0.57152885,3025.6,3024.1,0.00328749]
[1769631664956,0.57152885,3025.6,3024.1,0.16884749]
[1769631665756,0.57152885,3025.6,3024.4,0.16554]
[1769631665954,0.57152885,3025.6,3024.5,0.16553]
[1769631668261,0.57152885,3025.6,3024.7,0.16552]
[1769631676262,0.57152885,3025.6,3024.7,0.76248311]
[1769631676661,0.57152885,3025.6,3024.7,0.16552]
[1769631679363,0.57152885,3025.6,3024.8,0.16552]
[1769631680063,0.57152885,3025.6,3024.9,0.16551]
[1769631680265,0.56447819,3025.6,3024.9,0.16551]
[1769631680660,0.16542,3026.6,3024.9,0.16551]
[1769631680861,3.32715553,3026.5,3024.9,0.59696311]
[1769631681057,3.32715553,3026.4,3025.2,0.1655]
[1769631681262,3.309,3026.7,3025.2,0.1655]
[1769631681571,3.32711449,3026.6,3025.2,0.1655]
[1769631681860,3.32711449,3026.6,3024.6,0.59696311]
[1769631681861,3.32711449,3026.5,3024.6,0.16553]
[1769631682161,3.32711449,3026.4,3024.6,0.16553]
[1769631682367,0.57152885,3026.2,3024.6,0.16553]
[1769631682564,0.57152885,3026.0,3024.6,0.16553]
[1769631689568,0.57152885,3026.0,3024.7,0.16552]
[1769631692268,0.73697885,3026.0,3024.4,5.92385384]
[1769631692475,0.16547,3025.7,3024.2,6.08940384]
[1769631692671,0.48805302,3025.6,3024.2,0.16555]
[1769631696770,0.48805302,3025.6,3024.3,0.45899388]
[1769631696970,0.48805302,3025.6,3024.1,7.86814133]
[1769631696971,0.48805302,3025.6,3024.4,0.62453388]
[1769631697178,0.48805302,3025.6,3024.4,0.16554]
[1769631698271,0.48805302,3025.6,3024.4,2.10654]
[1769631699169,0.48805302,3025.6,3024.1,5.92714133]
[1769631699376,0.48805302,3025.6,3024.1,0.00328749]
[1769631701876,0.48805302,3025.6,3024.1,0.62784137]
[1769631702984,0.48805302,3025.6,3024.2,0.45899388]
[1769631703182,0.48805302,3025.6,3024.1,0.16884749]
[1769631703183,0.48805302,3025.6,3024.5,0.62452388]
[1769631703484,0.48805302,3025.6,3024.6,1.941]
[1769631706685,0.48805302,3025.6,3024.7,0.45899388]
[1769631707084,6.332,3026.6,3024.8,0.45899388]
[1769631707384,0.48805302,3025.9,3024.8,0.45899388]
[1769631713290,0.48805302,3025.9,3024.7,0.16552]
[1769631728907,0.48805302,3025.9,3024.5,0.45531462]
[1769631729109,0.39258632,3025.8,3024.3,5.92385384]
[1769631729308,0.55804632,3025.8,3024.2,6.08940384]
[1769631729506,0.55804632,3025.8,3024.1,0.00328749]
[1769631729507,0.39258632,3025.4,3024.1,0.00328749]
[1769631732411,0.39258632,3025.2,3023.8,0.16557]
[1769631732716,0.39258632,3025.0,3023.4,7.86485384]
[1769631732916,0.39258632,3025.0,3023.5,1.941]
[1769631733218,0.39258632,3025.0,3023.4,7.86485384]
[1769631733517,0.39530686,3025.0,3023.5,0.36639798]
[1769631734016,0.39530686,3025.0,3023.5,2.30739798]
[1769631735415,0.39530686,3025.0,3023.4,0.16959634]
[1769631735612,0.39530686,3025.0,3023.5,1.941]
[1769631737114,0.39530686,3025.0,3023.4,0.16959634]
[1769631737314,0.39530686,3025.0,3023.5,1.942]
[1769631737613,0.39530686,3025.0,3023.4,0.16959634]
[1769631738115,0.39530686,3025.0,3023.5,1.942]
[1769631739312,0.39530686,3025.0,3023.4,2.47361169]
[1769631740214,0.39530686,3025.0,3023.4,2.30802169]
[1769631740515,0.39530686,3025.0,3023.6,0.35101183]
[1769631740713,0.39530686,3025.0,3023.5,0.16559]
[1769631740918,0.39530686,3025.0,3023.6,1.942]
[1769631742018,0.39530686,3025.0,3023.5,0.16559]
[1769631743710,0.39530686,3025.0,3023.5,0.49271759]
[1769631744019,0.39530686,3025.0,3023.6,0.32712759]
[1769631751420,0.39530686,3025.0,3024.0,0.29200825]
[1769631751924,0.16545,3026.1,3024.7,0.30460478]
[1769631752107,0.16545,3026.1,3024.6,1.05097147]
[1769631752108,6.332,3026.6,3025.1,0.30460478]
[1769631752312,0.16542,3026.7,3025.1,0.30460478]
[1769631752625,3.35453188,3026.6,3025.1,0.30460478]
[1769631752808,0.0036861,3026.6,3025.1,0.30460478]
[1769631754018,0.30957855,3026.5,3025.1,0.30460478]
[1769631759325,0.30957855,3027.1,3026.3,0.30460478]
[1769631759626,3.61957855,3027.2,3026.3,1.35448266]
[1769631760124,3.31,3027.2,3026.5,1.35448266]
[1769631760321,3.31,3027.2,3026.6,0.30460478]
[1769631760524,3.31238379,3027.2,3026.6,0.30460478]
[1769631760927,3.31238379,3027.2,3026.5,1.0526423]
[1769631761127,3.31238379,3027.2,3026.5,0.00276442]
[1769631761128,3.62196234,3027.2,3026.5,0.00276442]
[1769631761322,0.30957855,3027.1,3026.5,0.00276442]
[1769631762420,0.30957855,3027.1,3025.7,0.30460478]
[1769631763429,0.30957855,3027.1,3025.7,0.30775086]
[1769631770739,0.30957855,3027.1,3025.7,0.00314608]
[1769631773136,0.30957855,3026.9,3025.7,0.00314608]
[1769631773341,0.30957855,3026.7,3025.7,0.00314608]
[1769631776443,3.35698026,3027.0,3025.7,0.28771864]
[1769631776746,0.26898026,3026.9,3025.7,0.28771864]
[1769631781150,0.26898026,3026.9,3025.7,0.00314608]
[1769631783558,0.26898026,3026.6,3025.7,0.00314608]
[1769631784254,0.26898026,3026.6,3025.8,1.33507827]
[1769631785652,0.26898026,3026.6,3025.8,0.28457256]
[1769631785853,0.26898026,3026.6,3025.7,0.00314608]
[1769631789165,0.26898026,3026.4,3025.7,0.00314608]
[1769631789860,0.26898026,3026.7,3025.7,0.28771864]
[1769631790060,0.26898026,3026.9,3026.0,1.33507827]
[1769631790865,0.26898026,3026.7,3025.7,0.00314608]
[1769631791454,0.26898026,3026.1,3025.0,0.28457256]
[1769631792462,0.26898026,3026.1,3025.0,0.28749699]
[1769631792658,0.26898026,3025.9,3025.0,0.00292443]
[1769631792863,0.26898026,3025.6,3024.4,0.28457256]
[1769631793258,0.26898026,3025.6,3024.6,0.28457256]
[1769631793460,0.26898026,3025.6,3024.6,1.33507827]
[1769631793661,0.26898026,3025.6,3024.6,0.28457256]
[1769631793859,0.26898026,3026.0,3024.6,0.28871508]
[1769631795372,0.26898026,3026.0,3024.6,0.00414252]
[1769631796568,0.26898026,3025.9,3024.6,0.00414252]
[1769631796865,0.26898026,3025.7,3024.2,0.28457256]
[1769631797367,0.26898026,3025.7,3023.9,0.28457256]
[1769631797760,0.26898026,3025.7,3023.9,0.28833783]
[1769631799066,0.26898026,3026.0,3024.3,0.28457256]
[1769631799570,0.26898026,3025.8,3024.3,0.28457256]
[1769631801367,0.26898026,3025.8,3024.4,0.28457256]
[1769631803768,3.113,3026.5,3024.5,0.28457256]
[1769631803967,0.26898026,3026.2,3024.5,0.28457256]
[1769631804273,0.26898026,3026.6,3025.3,0.28457256]
[1769631805770,0.26898026,3026.6,3025.4,0.23734215]
[1769631807379,0.22961832,3027.2,3025.9,0.2347727]
[1769631809672,0.00238379,3027.2,3026.0,0.2347727]
[1769631809879,0.00238379,3027.2,3026.0,0.4002227]
[1769631810077,0.00238379,3027.2,3026.1,0.2347727]
[1769631810278,0.00238379,3027.2,3026.1,0.23752638]
[1769631811973,0.22961832,3027.2,3026.1,0.23752638]
[1769631812178,0.22961832,3027.2,3026.1,0.00275368]
[1769631812578,0.22961832,3027.2,3026.1,0.23752638]
[1769631815187,0.00238379,3027.2,3026.1,0.23752638]
[1769631815582,0.00238379,3027.2,3026.3,0.2347727]
[1769631817879,0.00238379,3027.2,3026.5,0.2347727]
[1769631820490,0.22723453,3027.1,3026.3,0.16543]
[1769631820685,0.22723453,3027.1,3026.3,0.2347727]
[1769631820892,0.00238379,3027.2,3026.3,0.2347727]
[1769631822190,0.22961832,3027.2,3026.3,0.2347727]
[1769631825198,0.00238379,3027.2,3026.3,0.2347727]
[1769631828688,4.91316834,3028.8,3026.1,0.00275368]
[1769631828689,0.22723453,3028.2,3026.8,0.2347727]
[1769631828896,0.22723453,3028.2,3027.0,0.2347727]
[1769631829198,3.33023453,3028.2,3027.0,0.2347727]
[1769631829699,3.333579,3028.2,3027.0,0.2347727]
[1769631831095,0.22723453,3028.1,3027.0,0.2347727]
[1769631831793,0.22723453,3028.1,3026.4,0.2347727]
[1769631831996,0.00334447,3028.2,3026.9,0.2347727]
[1769631833202,0.00334447,3028.2,3027.3,0.2347727]
[1769631835497,0.21001704,3029.4,3028.0,0.20023648]
[1769631836601,0.21348123,3029.4,3028.0,0.20023648]
[1769631837193,0.21001704,3029.3,3028.0,0.20023648]
[1769631837704,0.21001704,3029.3,3027.7,0.19926506]
[1769631838204,0.21001704,3029.3,3027.4,0.19754874]
[1769631838698,0.21001704,3029.3,3027.5,0.19754874]
[1769631838899,0.00346419,3029.4,3027.5,0.19754874]
[1769631839204,0.00346419,3029.4,3028.4,0.1954743]
[1769631839398,0.00346419,3029.4,3028.5,0.1954743]
[1769631841202,0.21348123,3029.4,3028.5,0.1954743]
[1769631842297,5.89845525,3029.5,3028.5,0.1954743]
[1769631842298,2.59023143,3029.5,3029.0,0.16529]
[1769631842506,2.58040006,3029.5,3029.0,0.16529]
[1769631843306,2.58389567,3029.5,3029.0,0.16529]
[1769631847008,0.21579701,3029.4,3028.4,0.16956917]
[1769631847809,2.58389567,3029.5,3028.4,0.16956917]
[1769631848013,0.21566397,3030.2,3029.0,0.16529]
[1769631848914,0.218112,3030.2,3029.0,0.16529]
[1769631851509,0.218112,3030.2,3029.1,0.02194315]
[1769631852116,0.218112,3030.2,3029.0,0.16529]
[1769631863628,0.24216846,3030.4,3029.1,0.02103085]
[1769631863828,0.21103918,3030.6,3029.8,0.16524]
[1769631864726,0.21370631,3030.6,3029.8,0.16524]
[1769631866230,0.46252945,3030.6,3029.8,0.01760122]
[1769631866429,2.47636688,3031.6,3030.2,0.16522]
[1769631866628,3.52467052,3031.6,3030.0,0.16523]
[1769631866824,3.52467052,3031.6,3030.1,0.21713042]
[1769631867130,2.47636688,3031.6,3030.3,0.21713042]
[1769631867633,2.48049223,3031.6,3030.3,0.21713042]
[1769631868529,0.20905139,3031.5,3030.3,0.21713042]
[1769631869730,0.20905139,3031.5,3030.2,0.16522]
[1769631874240,0.20905139,3031.5,3030.3,0.21408513]
[1769631877446,0.20905139,3031.5,3030.2,0.16522]
[1769631877848,0.20905139,3031.5,3030.3,0.21408513]
[1769631879748,0.20905139,3031.5,3030.2,0.16522]
[1769631880247,0.20905139,3031.5,3030.3,0.21408513]
[1769631880646,0.20905139,3031.5,3029.7,0.21408513]
[1769631880843,0.20905139,3031.4,3029.7,0.37933513]
[1769631881050,0.20905139,3031.3,3029.8,0.37932513]
[1769631882853,0.20905139,3031.2,3030.0,0.21134109]
[1769631884953,0.20905139,3031.2,3030.2,0.21044271]
[1769631885348,0.20905139,3031.2,3030.1,0.16523]
[1769631887550,0.20905139,3031.2,3029.5,0.16526]
[1769631887748,0.20905139,3031.2,3029.6,0.16526]
[1769631888050,0.20905139,3031.2,3029.6,0.36810565]
[1769631888252,0.20905139,3031.0,3029.7,0.36809565]
[1769631888453,0.20905139,3031.0,3029.8,0.20284565]
[1769631890152,0.20905139,3031.0,3029.9,0.20135957]
[1769631891653,0.20905139,3031.0,3030.0,1.04722434]
[1769631892052,0.20905139,3030.5,3029.5,5.92385384]
[1769631892355,0.20905139,3030.5,3029.2,14.59129898]
[1769631892555,0.20905139,3030.5,3029.2,7.3374427]
[1769631893750,0.20905139,3030.5,3029.5,1.04722434]
[1769631896156,0.19251353,3030.4,3029.2,0.36636452]
[1769631896352,0.19251353,3030.4,3029.2,0.16528]
[1769631896553,0.19251353,3030.4,3029.0,1.04722434]
[1769631899057,0.19251353,3030.4,3029.2,1.04722434]
[1769631900464,0.19251353,3031.5,3030.0,0.19478157]
[1769631900654,0.19251353,3031.5,3027.7,9.90108212]
[1769631900655,0.19251353,3031.2,3029.9,1.21246434]
[1769631900961,0.19251353,3030.9,3029.9,0.16524]
[1769631901659,0.19251353,3030.9,3029.6,1.04722434]
[1769631902157,0.19251353,3030.2,3029.3,5.00257097]
[1769631902357,0.19251353,3030.2,3028.6,8.57273924]
[1769631902358,0.19251353,3030.1,3029.2,1.04722434]
[1769631902564,0.19251353,3030.1,3029.0,1.04722434]
[1769631903059,0.19251353,3031.2,3030.0,1.04722434]
[1769631903261,0.19251353,3031.2,3030.4,1.04722434]
[1769631903453,0.19251353,3031.2,3030.6,1.04722434]
[1769631903652,0.19251353,3031.2,3030.6,1.05081763]
[1769631904262,0.19251353,3031.2,3030.6,0.00359329]
[1769631907955,0.19251353,3031.0,3029.6,1.04722434]
[1769631908562,0.19251353,3031.0,3029.5,0.05865838]
[1769631908563,0.19251353,3030.6,3029.4,1.04722434]
[1769631908752,0.19251353,3030.6,3029.3,0.16527]
[1769631908753,0.19251353,3030.5,3029.3,0.16527]
[1769631909058,0.19251353,3030.2,3029.3,0.00241099]
[1769631910679,0.19258957,3030.0,3029.3,0.00241099]
[1769631910975,0.19258957,3030.0,3028.8,1.04722434]
[1769631911578,0.19258957,3030.0,3028.6,0.16531]
[1769631911779,0.19258957,3030.0,3028.6,0.16819066]
[1769631912674,0.19258957,3030.0,3028.6,0.00288066]
[1769631913273,0.19251353,3029.8,3028.6,0.00288066]
[1769631913972,3.062,3029.7,3028.6,0.05126574]
[1769631914177,0.19251353,3029.6,3028.6,0.05126574]
[1769631915684,0.19251353,3030.0,3028.8,0.04676133]
[1769631917074,0.19251353,3030.0,3028.7,0.1653]
[1769631920983,0.19251353,3030.0,3028.6,0.00288066]
[1769631922086,0.19251353,3029.8,3028.2,0.16533]
[1769631923180,0.19251353,3029.8,3028.2,0.16879143]
[1769631923486,0.19251353,3029.5,3028.2,0.00346143]
[1769631926981,0.35777353,3029.5,3028.2,0.00346143]
[1769631927182,0.20598203,3029.4,3028.2,0.00346143]
[1769631927486,0.20909002,3029.4,3028.2,0.00346143]
[1769631930403,0.2036528,3029.2,3027.3,0.18583482]
[1769631930590,0.2036528,3029.0,3027.3,0.18583482]
[1769631931295,0.3689428,3029.0,3027.4,0.02261414]
[1769631931491,0.2036528,3028.8,3027.6,0.02261414]
[1769631932091,0.2036528,3028.8,3027.6,0.18797414]
[1769631933594,0.2036528,3028.8,3027.7,1.04886175]
[1769631940607,0.2036528,3028.8,3027.9,1.04886175]
[1769631941608,0.2036528,3028.8,3027.8,0.00200168]
[1769631942800,0.2036528,3028.8,3027.6,0.16536]
[1769631943508,0.2036528,3029.1,3027.9,1.04876694]
[1769631943709,0.2036528,3029.0,3027.9,1.04876694]
[1769631945206,0.2036528,3028.9,3028.0,0.16534]
[1769631947013,0.2036528,3028.7,3027.5,0.16537]
[1769631948002,0.2036528,3028.7,3027.3,0.00354597]
[1769631949912,0.2036528,3028.4,3027.3,0.00354597]
[1769631950714,0.2036528,3028.2,3027.3,0.00354597]
[1769631951615,0.2036528,3028.0,3027.3,0.00354597]
[1769631953211,0.2036528,3028.0,3026.9,0.1654]
[1769631954217,0.2036528,3028.0,3026.9,0.16903306]
[1769631954913,0.2036528,3028.0,3026.9,0.00363306]
[1769631955111,0.2036528,3028.0,3026.5,5.84479859]
[1769631955310,0.2036528,3028.0,3026.3,0.16543]
[1769631956318,0.19200724,3027.9,3026.3,0.16788503]
[1769631960214,0.19200724,3027.9,3026.3,0.00245503]
[1769631960415,0.19049386,3027.7,3026.4,1.04876694]
[1769631960919,0.19049386,3027.7,3026.7,0.16541]
[1769631963111,0.19100717,3028.2,3026.7,1.04876694]
[1769631963316,0.19100717,3028.0,3026.9,0.1654]
[1769631971231,0.19023063,3028.5,3027.5,0.16537]
[1769631971416,0.19023063,3028.5,3027.6,0.16536]
[1769631971724,0.19023063,3028.8,3028.0,0.16534]
[1769631972222,0.19023063,3028.8,3027.5,5.84479859]
[1769631972421,0.19023063,3028.8,3027.3,5.84479859]
[1769631972622,0.19023063,3028.8,3027.6,0.16536]
[1769631973628,0.19023063,3028.8,3027.7,0.16536]
[1769631975426,0.19023063,3028.8,3027.9,0.16535]
[1769631975828,0.18982799,3029.1,3027.8,1.04876694]
[1769631976134,0.19293598,3029.4,3027.8,2.98876694]
[1769631976324,0.19293598,3029.4,3027.6,6.89356553]
[1769631976325,0.19293598,3029.4,3028.3,0.16533]
[1769631981940,0.00310799,3029.4,3028.7,0.1653]
[1769631982132,0.00310799,3029.4,3028.7,0.16805956]
[1769631983940,0.52424535,3030.1,3029.1,0.16528]
[1769631984234,0.3328567,3030.1,3029.3,0.16527]
[1769631984432,0.19138865,3030.4,3029.3,0.16527]
[1769631985034,0.19494906,3030.4,3029.3,0.16527]
[1769631987332,3.176,3031.3,3029.7,0.16525]
[1769631987532,3.52513382,3031.6,3029.3,1.04876694]
[1769631987533,3.52513382,3031.6,3030.0,0.30011314]
[1769631987733,9.508,3031.5,3030.1,0.13477541]
[1769631988535,9.51171196,3031.5,3030.1,0.13477541]
[1769631988736,9.84124184,3031.5,3030.1,0.13477541]
[1769631989341,0.15175118,3031.4,3030.1,0.13477541]
[1769631989636,0.15175118,3031.4,3030.0,0.16523]
[1769631992732,0.15175118,3031.1,3029.5,0.29785823]
[1769631993234,0.15175118,3031.1,3029.5,0.16526]
[1769631993732,1.04876694,3030.8,3029.5,0.16526]
[1769631994040,0.15175118,3030.7,3029.5,0.16526]
[1769631994338,0.15175118,3030.5,3029.5,0.16526]
[1769631994538,0.15175118,3030.5,3029.0,0.16529]
[1769631994939,0.15175118,3030.3,3029.0,0.16529]
[1769631997435,0.15175118,3030.3,3028.7,0.00275956]
[1769631998546,0.15175118,3030.3,3028.7,0.29498854]
[1769631998731,0.15175118,3030.3,3028.7,0.16805956]
[1769631999846,0.15175118,3030.1,3028.7,0.16805956]
[1769632000250,0.15175118,3030.1,3028.7,0.00275956]
[1769632003441,0.15175118,3029.9,3028.7,0.00275956]
[1769632003647,0.15175118,3029.7,3027.8,0.12260643]
[1769632003953,0.15175118,3029.5,3027.8,0.12260643]
[1769632004539,0.15175118,3029.5,3027.8,0.12530951]
[1769632004944,0.15175118,3029.5,3027.8,0.00270308]
[1769632005344,0.15175118,3029.3,3027.8,0.00270308]
[1769632005546,0.15494861,3029.3,3027.8,0.00270308]
[1769632006452,0.15494861,3029.3,3028.0,0.11549536]
[1769632007256,0.15494861,3029.3,3027.9,0.16535]
[1769632008448,0.15494861,3029.3,3027.8,0.00270308]
[1769632011851,0.16528,3029.2,3027.8,0.00270308]
[1769632012052,0.15175118,3029.1,3027.8,0.00270308]
[1769632013157,0.15175118,3029.1,3027.8,0.13068244]
[1769632016563,0.15175118,3029.1,3027.8,0.00270308]
[1769632017657,0.13999298,3028.5,3027.6,0.16536]
[1769632017955,0.13999298,3028.3,3027.6,0.16536]
[1769632018751,0.13999298,3028.3,3027.6,0.16927272]
[1769632022251,3.231,3028.4,3027.7,0.12767673]
[1769632022560,0.13999298,3028.9,3027.9,0.29302673]
[1769632022757,0.13999298,3028.9,3028.1,0.13186374]
[1769632023157,0.13999298,3029.2,3028.3,0.13186374]
[1769632024859,0.00319743,3029.3,3028.3,0.13186374]
[1769632025055,0.14319041,3029.3,3028.3,0.29719374]
[1769632025461,0.14319041,3029.3,3028.4,0.12971395]
[1769632026464,0.14319041,3029.3,3028.5,0.12964141]
[1769632026653,0.00319743,3029.3,3028.5,0.12964141]
[1769632027565,0.00319743,3029.3,3028.6,0.12728479]
[1769632029561,0.13999298,3029.4,3028.5,0.16532]
[1769632030164,0.13999298,3029.4,3028.5,0.28605801]
[1769632030567,0.14268535,3029.4,3028.5,0.28605801]
[1769632030962,0.13999298,3030.0,3028.6,0.11766997]
[1769632031771,0.13999298,3030.0,3028.9,0.28295997]
[1769632032065,0.14307481,3030.0,3029.1,0.117605]
[1769632032266,0.14307481,3030.0,3029.1,0.16528]
[1769632036669,0.14307481,3030.0,3028.5,0.28724956]
[1769632036862,0.14307481,3030.0,3028.5,0.16531]
[1769632037266,0.14307481,3030.0,3028.6,0.12193956]
[1769632037974,0.14307481,3030.0,3028.5,0.16531]
[1769632038176,0.13999298,3029.8,3028.5,0.16531]
[1769632038370,0.13999298,3029.8,3027.9,0.16534]
[1769632038371,0.13999298,3029.7,3027.9,0.16534]
[1769632038575,0.13999298,3029.7,3028.2,0.12187793]
[1769632039077,0.13999298,3029.7,3028.3,0.11534616]
[1769632039971,0.13999298,3029.7,3028.2,0.16533]
[1769632040579,0.13999298,3029.7,3028.2,0.28061732]
[1769632044691,0.13999298,3029.7,3028.3,0.11894208]
[1769632045595,0.1437107,3029.5,3028.3,0.11894208]
[1769632050599,0.1437107,3029.5,3028.7,0.11828236]
[1769632050994,0.1437107,3029.5,3028.5,0.11823892]
[1769632051191,1.0484323,3029.2,3028.5,0.16531]
[1769632051392,0.14374341,3029.1,3028.5,0.16531]
[1769632055405,0.14374341,3029.5,3028.5,0.16531]
[1769632056206,0.14374341,3029.3,3028.5,0.16531]
[1769632057998,0.14374341,3029.3,3028.1,0.2825228]
[1769632058200,0.14374341,3029.3,3028.2,0.11856046]